[Event "Late-Titled-Tuesday-Blitz-October-10-2023"]
[Site "Chess.com"]
[Date "2023.10.10"]
[Round "10"]
[White "borocotoajua"]
[Black "egnfanclub"]
[Result "1-0"]
[WhiteElo "2560"]
[BlackElo "2369"]
[TimeControl "180+1"]
[EndTime "15:50:13 PDT"]
[Termination "borocotoajua won by checkmate"]

1. d4 {[%clk 0:02:59.9]} 1... d5 {[%clk 0:02:59.2]} 2. Nf3 {[%clk 0:03:00.3]}
2... Nf6 {[%clk 0:02:58.8]} 3. c4 {[%clk 0:03:00.9]} 3... c6 {[%clk 0:02:59.3]}
4. g3 {[%clk 0:03:00.2]} 4... e6 {[%clk 0:02:57.5]} 5. Qc2 {[%clk 0:02:59.5]}
5... dxc4 {[%clk 0:02:56.7]} 6. Nbd2 {[%clk 0:02:55.9]} 6... b5 {[%clk
0:02:55.7]} 7. Bg2 {[%clk 0:02:56.1]} 7... Bb7 {[%clk 0:02:55.4]} 8. O-O {[%clk
0:02:55.9]} 8... Nbd7 {[%clk 0:02:54.1]} 9. b3 {[%clk 0:02:56]} 9... cxb3 {[%clk
0:02:54.1]} 10. Nxb3 {[%clk 0:02:56.9]} 10... Be7 {[%clk 0:02:46.1]} 11. Bb2
{[%clk 0:02:49.5]} 11... a5 {[%clk 0:02:43.5]} 12. a4 {[%clk 0:02:46.1]} 12...
O-O {[%clk 0:02:36.6]} 13. Ne1 {[%clk 0:02:40.9]} 13... Nd5 {[%clk 0:02:34.8]}
14. Nd3 {[%clk 0:02:37.3]} 14... bxa4 {[%clk 0:02:06]} 15. Rxa4 {[%clk
0:02:33.7]} 15... Nb4 {[%clk 0:02:02.1]} 16. Nxb4 {[%clk 0:02:29.1]} 16... Bxb4
{[%clk 0:02:03]} 17. Rfa1 {[%clk 0:02:21.5]} 17... Nb6 {[%clk 0:01:57.2]} 18.
R4a2 {[%clk 0:02:20.9]} 18... Nd5 {[%clk 0:01:53.8]} 19. Nc5 {[%clk 0:02:12.5]}
19... Bc8 {[%clk 0:01:45]} 20. Nd3 {[%clk 0:02:10]} 20... Rb8 {[%clk 0:01:29]}
21. Qxc6 {[%clk 0:02:04.3]} 21... Bb7 {[%clk 0:01:19.8]} 22. Qc2 {[%clk
0:02:04.3]} 22... Rc8 {[%clk 0:01:09.2]} 23. Qb3 {[%clk 0:02:02.1]} 23... Ba6
{[%clk 0:00:58.9]} 24. Nxb4 {[%clk 0:01:48.3]} 24... Bc4 {[%clk 0:00:59]} 25.
Qd1 {[%clk 0:01:38.9]} 25... axb4 {[%clk 0:00:56.6]} 26. Ra7 {[%clk 0:01:34.8]}
26... Nc3 {[%clk 0:00:44.4]} 27. Qd2 {[%clk 0:01:24.7]} 27... Nxe2+ {[%clk
0:00:26.9]} 28. Kh1 {[%clk 0:01:24.8]} 28... Nc3 {[%clk 0:00:25.9]} 29. Bxc3
{[%clk 0:01:10.7]} 29... bxc3 {[%clk 0:00:26.8]} 30. Qxc3 {[%clk 0:01:11.4]}
30... Bd5 {[%clk 0:00:27.4]} 31. Qd3 {[%clk 0:01:09]} 31... Bxg2+ {[%clk
0:00:26.6]} 32. Kxg2 {[%clk 0:01:09.9]} 32... Qd5+ {[%clk 0:00:26.9]} 33. Qf3
{[%clk 0:01:05.5]} 33... Qxd4 {[%clk 0:00:22.8]} 34. R1a4 {[%clk 0:00:54.8]}
34... Rc4 {[%clk 0:00:20.5]} 35. Rxf7 {[%clk 0:00:47.8]} 35... Rfc8 {[%clk
0:00:17.3]} 36. Raa7 {[%clk 0:00:44.8]} 36... Rc3 {[%clk 0:00:15.3]} 37. Qb7
{[%clk 0:00:36.8]} 37... Qd5+ {[%clk 0:00:08.6]} 38. Qxd5 {[%clk 0:00:37]} 38...
exd5 {[%clk 0:00:09.5]} 39. Rxg7+ {[%clk 0:00:37.5]} 39... Kf8 {[%clk
0:00:10.2]} 40. Rxh7 {[%clk 0:00:38.1]} 40... d4 {[%clk 0:00:09.3]} 41. Rh8#
{[%clk 0:00:38.3]} 1-0

[Event "Late-Titled-Tuesday-Blitz-October-10-2023"]
[Site "Chess.com"]
[Date "2023.10.10"]
[Round "10"]
[White "tptagain"]
[Black "THE_PLAYER6"]
[Result "1-0"]
[WhiteElo "2888"]
[BlackElo "2687"]
[TimeControl "180+1"]
[EndTime "15:50:16 PDT"]
[Termination "tptagain won by resignation"]

1. Nf3 {[%clk 0:03:00.9]} 1... Nf6 {[%clk 0:02:53.1]} 2. b3 {[%clk 0:03:01.8]}
2... g6 {[%clk 0:02:53]} 3. Bb2 {[%clk 0:03:02.7]} 3... Bg7 {[%clk 0:02:53.5]}
4. g3 {[%clk 0:03:02.6]} 4... O-O {[%clk 0:02:53.8]} 5. Bg2 {[%clk 0:03:03.3]}
5... c5 {[%clk 0:02:52.7]} 6. c4 {[%clk 0:03:02.9]} 6... Nc6 {[%clk 0:02:52.9]}
7. O-O {[%clk 0:03:02.7]} 7... b6 {[%clk 0:02:48.4]} 8. d4 {[%clk 0:03:02.2]}
8... cxd4 {[%clk 0:02:48.4]} 9. Nxd4 {[%clk 0:03:03.1]} 9... Bb7 {[%clk
0:02:48.9]} 10. Nc3 {[%clk 0:03:02]} 10... Rc8 {[%clk 0:02:46.3]} 11. Rc1 {[%clk
0:02:56.7]} 11... Qc7 {[%clk 0:02:46]} 12. Nd5 {[%clk 0:02:54.2]} 12... Qd8
{[%clk 0:02:37]} 13. Nb5 {[%clk 0:02:34.4]} 13... a6 {[%clk 0:02:25]} 14. Bxf6
{[%clk 0:02:17.4]} 14... axb5 {[%clk 0:02:04.1]} 15. Bxg7 {[%clk 0:02:16.6]}
15... Kxg7 {[%clk 0:02:01.6]} 16. cxb5 {[%clk 0:02:16.6]} 16... Na7 {[%clk
0:01:38.1]} 17. Qd4+ {[%clk 0:02:11.8]} 17... f6 {[%clk 0:01:36.9]} 18. a4
{[%clk 0:02:01.4]} 18... Bxd5 {[%clk 0:01:30.7]} 19. Qxd5 {[%clk 0:01:57.8]}
19... Rxc1 {[%clk 0:01:27.3]} 20. Rxc1 {[%clk 0:01:57.4]} 20... Nc8 {[%clk
0:01:27.8]} 21. Qa8 {[%clk 0:01:51.1]} 21... Nd6 {[%clk 0:01:24.3]} 22. Qxd8
{[%clk 0:01:51]} 22... Rxd8 {[%clk 0:01:25.2]} 23. Rc7 {[%clk 0:01:46.8]} 23...
Kf7 {[%clk 0:01:24.6]} 24. f4 {[%clk 0:01:45.5]} 24... e6 {[%clk 0:01:20.7]} 25.
Kf2 {[%clk 0:01:41.5]} 25... Ke7 {[%clk 0:01:18.2]} 26. g4 {[%clk 0:01:39.8]}
26... h6 {[%clk 0:01:10.4]} 27. h3 {[%clk 0:01:37.2]} 27... g5 {[%clk
0:01:09.9]} 28. e3 {[%clk 0:01:37.5]} 28... e5 {[%clk 0:01:07]} 29. Bd5 {[%clk
0:01:37.6]} 29... Rh8 {[%clk 0:00:43.6]} 30. Bc6 {[%clk 0:01:30.9]} 30... Rd8
{[%clk 0:00:43.4]} 31. Kf3 {[%clk 0:01:29]} 31... Ke8 {[%clk 0:00:32.2]} 32. Be4
{[%clk 0:01:26.1]} 32... Ke7 {[%clk 0:00:31.1]} 33. Bc6 {[%clk 0:01:12.6]} 33...
Ke8 {[%clk 0:00:30.6]} 34. Bd5 {[%clk 0:01:12.8]} 34... Ke7 {[%clk 0:00:31]} 35.
fxe5 {[%clk 0:01:07]} 35... fxe5 {[%clk 0:00:31.9]} 36. e4 {[%clk 0:01:07.1]}
36... Rf8+ {[%clk 0:00:30.8]} 37. Ke3 {[%clk 0:01:07.1]} 37... Kd8 {[%clk
0:00:28.6]} 38. Ra7 {[%clk 0:01:06.5]} 38... Rf1 {[%clk 0:00:28.3]} 39. a5
{[%clk 0:01:03.7]} 39... bxa5 {[%clk 0:00:23.4]} 40. b6 {[%clk 0:01:03.8]} 40...
Rh1 {[%clk 0:00:19.6]} 41. Ra8+ {[%clk 0:00:52.2]} 41... Ke7 {[%clk 0:00:18.5]}
42. Rxa5 {[%clk 0:00:52.8]} 42... Rxh3+ {[%clk 0:00:17.9]} 43. Kf2 {[%clk
0:00:53.4]} 43... h5 {[%clk 0:00:13.5]} 44. gxh5 {[%clk 0:00:52.7]} 44... Rxh5
{[%clk 0:00:13.4]} 45. b7 {[%clk 0:00:53.3]} 45... Nxb7 {[%clk 0:00:13.1]} 46.
Bxb7 {[%clk 0:00:54.2]} 46... d6 {[%clk 0:00:13.2]} 47. Bd5 {[%clk 0:00:54]}
47... Rh2+ {[%clk 0:00:13.5]} 48. Kg3 {[%clk 0:00:54]} 1-0

[Event "Late-Titled-Tuesday-Blitz-October-10-2023"]
[Site "Chess.com"]
[Date "2023.10.10"]
[Round "10"]
[White "Korchmar_Vasiliy"]
[Black "Fandorine"]
[Result "0-1"]
[WhiteElo "2769"]
[BlackElo "2927"]
[TimeControl "180+1"]
[EndTime "15:50:21 PDT"]
[Termination "Fandorine won by resignation"]

1. e4 {[%clk 0:03:00.9]} 1... e6 {[%clk 0:02:57.9]} 2. d4 {[%clk 0:03:00.9]}
2... d5 {[%clk 0:02:58.2]} 3. e5 {[%clk 0:03:01.5]} 3... c5 {[%clk 0:02:58.3]}
4. c3 {[%clk 0:03:02.1]} 4... Nc6 {[%clk 0:02:58.9]} 5. Nf3 {[%clk 0:03:02.5]}
5... Bd7 {[%clk 0:02:59.5]} 6. Be2 {[%clk 0:03:01.8]} 6... f6 {[%clk 0:02:59.4]}
7. O-O {[%clk 0:03:00.5]} 7... fxe5 {[%clk 0:02:59.4]} 8. dxe5 {[%clk
0:03:01.4]} 8... Qc7 {[%clk 0:02:58.6]} 9. c4 {[%clk 0:02:41.9]} 9... d4 {[%clk
0:02:50.3]} 10. Re1 {[%clk 0:02:42.3]} 10... Nh6 {[%clk 0:02:42.4]} 11. Bxh6
{[%clk 0:02:32.9]} 11... gxh6 {[%clk 0:02:43.3]} 12. Nbd2 {[%clk 0:02:28.2]}
12... Bg7 {[%clk 0:02:40.8]} 13. Ne4 {[%clk 0:02:25.4]} 13... Nxe5 {[%clk
0:02:26.7]} 14. Nxe5 {[%clk 0:02:25.4]} 14... Bxe5 {[%clk 0:02:27.5]} 15. Bh5+
{[%clk 0:02:25.7]} 15... Ke7 {[%clk 0:02:27.6]} 16. Qf3 {[%clk 0:02:16.2]} 16...
Bxh2+ {[%clk 0:02:07.9]} 17. Kh1 {[%clk 0:02:16]} 17... Raf8 {[%clk 0:02:08.4]}
18. Qh3 {[%clk 0:02:10.7]} 18... Be5 {[%clk 0:02:01.8]} 19. Qh4+ {[%clk
0:01:39.3]} 19... Bf6 {[%clk 0:02:01.4]} 20. Nxf6 {[%clk 0:01:40]} 20... Rxf6
{[%clk 0:02:01.9]} 21. Re4 {[%clk 0:01:39.4]} 21... Rf8 {[%clk 0:01:46.2]} 22.
Rae1 {[%clk 0:01:37.5]} 22... Kd8 {[%clk 0:01:43.8]} 23. b4 {[%clk 0:00:49.2]}
23... Kc8 {[%clk 0:01:28.1]} 24. Bf3 {[%clk 0:00:49.1]} 24... Bc6 {[%clk
0:00:34.3]} 25. Rxe6 {[%clk 0:00:48.6]} 25... Rxe6 {[%clk 0:00:34.8]} 26. Rxe6
{[%clk 0:00:49.3]} 26... Bxf3 {[%clk 0:00:35.5]} 27. gxf3 {[%clk 0:00:47.8]}
27... Qf7 {[%clk 0:00:36.1]} 28. Qe4 {[%clk 0:00:05.7]} 28... Qxf3+ {[%clk
0:00:35.1]} 29. Qxf3 {[%clk 0:00:06.6]} 29... Rxf3 {[%clk 0:00:35.1]} 30. bxc5
{[%clk 0:00:06.2]} 30... Rxf2 {[%clk 0:00:34.1]} 31. Rd6 {[%clk 0:00:03.5]}
31... Rxa2 {[%clk 0:00:27.6]} 32. Rxd4 {[%clk 0:00:03.7]} 32... Ra5 {[%clk
0:00:26.7]} 33. Rd5 {[%clk 0:00:03.7]} 33... b6 {[%clk 0:00:21]} 34. Rh5 {[%clk
0:00:03.5]} 34... Rxc5 {[%clk 0:00:20.8]} 0-1

[Event "Late-Titled-Tuesday-Blitz-October-10-2023"]
[Site "Chess.com"]
[Date "2023.10.10"]
[Round "10"]
[White "BeyondMadness"]
[Black "AlexandraBotez"]
[Result "1-0"]
[WhiteElo "2323"]
[BlackElo "2285"]
[TimeControl "180+1"]
[EndTime "15:50:21 PDT"]
[Termination "BeyondMadness won on time"]

1. d4 {[%clk 0:03:00.9]} 1... Nf6 {[%clk 0:02:56.6]} 2. c4 {[%clk 0:03:00.4]}
2... e6 {[%clk 0:02:56.1]} 3. Nc3 {[%clk 0:02:59.9]} 3... d5 {[%clk 0:02:56.2]}
4. cxd5 {[%clk 0:02:59.1]} 4... exd5 {[%clk 0:02:56.3]} 5. Bg5 {[%clk
0:02:58.6]} 5... Be7 {[%clk 0:02:54.6]} 6. Qc2 {[%clk 0:02:58.2]} 6... c6 {[%clk
0:02:54.6]} 7. e3 {[%clk 0:02:57.8]} 7... O-O {[%clk 0:02:53.1]} 8. Bd3 {[%clk
0:02:57.6]} 8... h6 {[%clk 0:02:52.6]} 9. Bh4 {[%clk 0:02:56]} 9... Na6 {[%clk
0:02:52.7]} 10. a3 {[%clk 0:02:54.9]} 10... Nc7 {[%clk 0:02:52.4]} 11. Nge2
{[%clk 0:02:54.1]} 11... Bg4 {[%clk 0:02:50.6]} 12. f3 {[%clk 0:02:47.7]} 12...
Be6 {[%clk 0:02:48.5]} 13. O-O {[%clk 0:02:39.7]} 13... Qd7 {[%clk 0:02:42]} 14.
e4 {[%clk 0:02:28.2]} 14... Nxe4 {[%clk 0:01:50.9]} 15. fxe4 {[%clk 0:02:29.1]}
15... Bxh4 {[%clk 0:01:50.4]} 16. e5 {[%clk 0:02:08.2]} 16... Rac8 {[%clk
0:01:26]} 17. g3 {[%clk 0:01:46.8]} 17... Bg5 {[%clk 0:01:20.8]} 18. Nf4 {[%clk
0:01:45.9]} 18... b6 {[%clk 0:01:19.4]} 19. Qf2 {[%clk 0:01:29]} 19... Bxf4
{[%clk 0:00:57.6]} 20. gxf4 {[%clk 0:01:25.9]} 20... Bh3 {[%clk 0:00:55.8]} 21.
Rfe1 {[%clk 0:01:25.4]} 21... c5 {[%clk 0:00:51.6]} 22. f5 {[%clk 0:01:17.3]}
22... cxd4 {[%clk 0:00:48.5]} 23. Ne2 {[%clk 0:01:16]} 23... g6 {[%clk
0:00:42.9]} 24. Nxd4 {[%clk 0:01:08.8]} 24... Kh8 {[%clk 0:00:20.5]} 25. Qh4
{[%clk 0:01:03.9]} 25... Bxf5 {[%clk 0:00:17.6]} 26. Qxh6+ {[%clk 0:00:54.9]}
26... Kg8 {[%clk 0:00:17.8]} 27. Nxf5 {[%clk 0:00:39.4]} 27... gxf5 {[%clk
0:00:15.1]} 28. Re2 {[%clk 0:00:37.6]} 28... f6 {[%clk 0:00:06.5]} 29. Rg2+
{[%clk 0:00:35]} 29... Kf7 {[%clk 0:00:06.7]} 30. Rg7+ {[%clk 0:00:30.6]} 30...
Ke6 {[%clk 0:00:07.3]} 31. Bxf5+ {[%clk 0:00:19.8]} 31... Kxf5 {[%clk
0:00:03.8]} 32. Rxd7 {[%clk 0:00:19.2]} 32... Rg8+ {[%clk 0:00:03.6]} 33. Kh1
{[%clk 0:00:18.2]} 1-0

[Event "Late-Titled-Tuesday-Blitz-October-10-2023"]
[Site "Chess.com"]
[Date "2023.10.10"]
[Round "10"]
[White "The_Princess_Moon"]
[Black "IMGC"]
[Result "1-0"]
[WhiteElo "2323"]
[BlackElo "2405"]
[TimeControl "180+1"]
[EndTime "15:50:30 PDT"]
[Termination "The_Princess_Moon won by resignation"]

1. e4 {[%clk 0:03:00.9]} 1... b6 {[%clk 0:02:34.2]} 2. d4 {[%clk 0:03:00.3]}
2... Bb7 {[%clk 0:02:34.7]} 3. Nc3 {[%clk 0:03:00.8]} 3... e6 {[%clk 0:02:35]}
4. Nf3 {[%clk 0:03:00.7]} 4... Bb4 {[%clk 0:02:34.5]} 5. Bd3 {[%clk 0:02:59.7]}
5... Nf6 {[%clk 0:02:34.9]} 6. Nd2 {[%clk 0:02:58.1]} 6... c5 {[%clk 0:02:33.5]}
7. dxc5 {[%clk 0:02:53.3]} 7... bxc5 {[%clk 0:02:33.1]} 8. O-O {[%clk
0:02:51.4]} 8... d6 {[%clk 0:02:31]} 9. Bb5+ {[%clk 0:02:46.8]} 9... Nc6 {[%clk
0:02:29]} 10. Qf3 {[%clk 0:02:42]} 10... O-O {[%clk 0:02:27.2]} 11. Bxc6 {[%clk
0:02:40.6]} 11... Bxc6 {[%clk 0:02:26.3]} 12. Re1 {[%clk 0:02:39.6]} 12... Rc8
{[%clk 0:02:19]} 13. a3 {[%clk 0:02:39.3]} 13... Ba5 {[%clk 0:02:17.3]} 14. Qe2
{[%clk 0:02:21.6]} 14... Bc7 {[%clk 0:02:04.7]} 15. Nf3 {[%clk 0:02:03.7]} 15...
Nd7 {[%clk 0:01:56.2]} 16. Bf4 {[%clk 0:02:00.9]} 16... d5 {[%clk 0:01:45.7]}
17. Bxc7 {[%clk 0:01:52.3]} 17... Qxc7 {[%clk 0:01:46.6]} 18. exd5 {[%clk
0:01:52.4]} 18... exd5 {[%clk 0:01:46.5]} 19. Rad1 {[%clk 0:01:52.3]} 19... d4
{[%clk 0:01:46.5]} 20. Nb1 {[%clk 0:01:41.8]} 20... Qb7 {[%clk 0:01:37.1]} 21.
Nbd2 {[%clk 0:01:35.4]} 21... Qxb2 {[%clk 0:01:25.3]} 22. Nc4 {[%clk 0:01:35]}
22... Qc3 {[%clk 0:01:25.8]} 23. Nd6 {[%clk 0:01:17.1]} 23... Rb8 {[%clk
0:01:24.3]} 24. Rd3 {[%clk 0:01:10.7]} 24... Qa5 {[%clk 0:01:23.8]} 25. Ng5
{[%clk 0:01:03.5]} 25... Bd5 {[%clk 0:01:05.8]} 26. Red1 {[%clk 0:00:47.5]}
26... h6 {[%clk 0:01:04]} 27. Nge4 {[%clk 0:00:42]} 27... f5 {[%clk 0:00:58.9]}
28. Ng3 {[%clk 0:00:37.9]} 28... Qc7 {[%clk 0:00:58.1]} 29. Ngxf5 {[%clk
0:00:35.3]} 29... Rf6 {[%clk 0:00:41.7]} 30. Qh5 {[%clk 0:00:29.3]} 30... Rxd6
{[%clk 0:00:40.3]} 31. Nxd6 {[%clk 0:00:28.1]} 31... Qxd6 {[%clk 0:00:41.2]} 32.
Rg3 {[%clk 0:00:28.1]} 32... Rf8 {[%clk 0:00:33.2]} 33. Qg4 {[%clk 0:00:25]}
33... Rf7 {[%clk 0:00:30.4]} 34. f3 {[%clk 0:00:24.8]} 34... Qe7 {[%clk
0:00:25.4]} 35. h4 {[%clk 0:00:21.5]} 35... Qe3+ {[%clk 0:00:24]} 36. Kh2 {[%clk
0:00:21.2]} 36... Nf6 {[%clk 0:00:24.5]} 37. Qc8+ {[%clk 0:00:20.2]} 37... Kh7
{[%clk 0:00:23.7]} 38. Qf5+ {[%clk 0:00:19]} 38... Kg8 {[%clk 0:00:20.5]} 39.
Qc8+ {[%clk 0:00:17.6]} 39... Rf8 {[%clk 0:00:20.8]} 40. Qxc5 {[%clk 0:00:16.7]}
40... Nh5 {[%clk 0:00:19.2]} 41. Qxd5+ {[%clk 0:00:12.8]} 1-0

[Event "Late-Titled-Tuesday-Blitz-October-10-2023"]
[Site "Chess.com"]
[Date "2023.10.10"]
[Round "10"]
[White "AleksandrAleksikov"]
[Black "jguerramzllo"]
[Result "0-1"]
[WhiteElo "2262"]
[BlackElo "2583"]
[TimeControl "180+1"]
[EndTime "15:50:32 PDT"]
[Termination "jguerramzllo won on time"]

1. e4 {[%clk 0:03:00.9]} 1... c5 {[%clk 0:02:58.1]} 2. Nf3 {[%clk 0:03:00.5]}
2... Nc6 {[%clk 0:02:57.6]} 3. d4 {[%clk 0:03:00.4]} 3... cxd4 {[%clk
0:02:57.2]} 4. Nxd4 {[%clk 0:03:00.6]} 4... g6 {[%clk 0:02:55]} 5. Nc3 {[%clk
0:03:00.2]} 5... Bg7 {[%clk 0:02:53.6]} 6. Be3 {[%clk 0:03:00.1]} 6... Nf6
{[%clk 0:02:54.1]} 7. Nxc6 {[%clk 0:02:56.2]} 7... bxc6 {[%clk 0:02:46.1]} 8. e5
{[%clk 0:02:55.2]} 8... Ng8 {[%clk 0:02:46.1]} 9. Bd4 {[%clk 0:02:48.3]} 9...
Qa5 {[%clk 0:02:45.6]} 10. f4 {[%clk 0:02:47.2]} 10... Rb8 {[%clk 0:02:37.2]}
11. Bc4 {[%clk 0:02:01.3]} 11... Nh6 {[%clk 0:02:10.6]} 12. Qd2 {[%clk
0:01:33.4]} 12... Nf5 {[%clk 0:02:08.5]} 13. Bf2 {[%clk 0:01:32.1]} 13... d5
{[%clk 0:01:58.1]} 14. Bb3 {[%clk 0:01:19.5]} 14... O-O {[%clk 0:01:56.3]} 15.
g4 {[%clk 0:01:16.5]} 15... Nh6 {[%clk 0:01:34.8]} 16. h3 {[%clk 0:01:15.6]}
16... e6 {[%clk 0:01:25.9]} 17. O-O-O {[%clk 0:00:58.3]} 17... c5 {[%clk
0:01:23.5]} 18. Nxd5 {[%clk 0:00:56.9]} 18... Qxd2+ {[%clk 0:01:22.9]} 19. Rxd2
{[%clk 0:00:56.6]} 19... exd5 {[%clk 0:01:23.3]} 20. Rxd5 {[%clk 0:00:56.2]}
20... Bb7 {[%clk 0:01:20.1]} 21. Rhd1 {[%clk 0:00:53.3]} 21... Bxd5 {[%clk
0:01:19.7]} 22. Rxd5 {[%clk 0:00:51.9]} 22... Rfc8 {[%clk 0:01:06.2]} 23. Bxc5
{[%clk 0:00:42.5]} 23... Rb7 {[%clk 0:00:55]} 24. Be3 {[%clk 0:00:34.2]} 24...
Kh8 {[%clk 0:00:36.8]} 25. c3 {[%clk 0:00:30.4]} 25... Ng8 {[%clk 0:00:36.1]}
26. Ra5 {[%clk 0:00:25.7]} 26... Ne7 {[%clk 0:00:25.3]} 27. Rxa7 {[%clk
0:00:18.3]} 27... Rxa7 {[%clk 0:00:24.7]} 28. Bxa7 {[%clk 0:00:17.7]} 28... Nc6
{[%clk 0:00:15.8]} 29. Be3 {[%clk 0:00:15.4]} 29... Nd8 {[%clk 0:00:14.8]} 30.
Kd2 {[%clk 0:00:12.9]} 30... Bf8 {[%clk 0:00:14.9]} 31. Bd4 {[%clk 0:00:12.1]}
31... Bc5 {[%clk 0:00:14.1]} 32. Bd5 {[%clk 0:00:09]} 32... Bxd4 {[%clk
0:00:13.4]} 33. cxd4 {[%clk 0:00:08.6]} 33... Kg8 {[%clk 0:00:11.8]} 34. f5
{[%clk 0:00:07.1]} 34... Kf8 {[%clk 0:00:10.1]} 0-1

[Event "Late-Titled-Tuesday-Blitz-October-10-2023"]
[Site "Chess.com"]
[Date "2023.10.10"]
[Round "10"]
[White "TheMagician"]
[Black "Blackwhite017"]
[Result "1-0"]
[WhiteElo "2220"]
[BlackElo "2044"]
[TimeControl "180+1"]
[EndTime "15:50:32 PDT"]
[Termination "TheMagician won on time"]

1. d4 {[%clk 0:02:54.1]} 1... d5 {[%clk 0:02:59.9]} 2. c4 {[%clk 0:02:53.6]}
2... c6 {[%clk 0:03:00.3]} 3. e3 {[%clk 0:02:51.8]} 3... Nf6 {[%clk 0:03:00.4]}
4. Nc3 {[%clk 0:02:50]} 4... g6 {[%clk 0:03:00.6]} 5. Bd2 {[%clk 0:02:49.8]}
5... Bg7 {[%clk 0:03:00.8]} 6. Nf3 {[%clk 0:02:48.9]} 6... Bg4 {[%clk
0:03:00.4]} 7. Qb3 {[%clk 0:02:47.5]} 7... Bxf3 {[%clk 0:02:40.1]} 8. gxf3
{[%clk 0:02:38.1]} 8... Qd7 {[%clk 0:02:15.5]} 9. h4 {[%clk 0:02:25.1]} 9...
dxc4 {[%clk 0:02:11.1]} 10. Bxc4 {[%clk 0:02:10.2]} 10... O-O {[%clk 0:02:07.4]}
11. O-O-O {[%clk 0:01:59.2]} 11... b5 {[%clk 0:02:04.7]} 12. Bd3 {[%clk
0:01:52.8]} 12... a5 {[%clk 0:02:02.5]} 13. Kb1 {[%clk 0:01:45.1]} 13... a4
{[%clk 0:02:00.5]} 14. Qc2 {[%clk 0:01:45.1]} 14... Na6 {[%clk 0:01:56.5]} 15.
Ne4 {[%clk 0:01:43.8]} 15... Nd5 {[%clk 0:01:50.8]} 16. Nc5 {[%clk 0:01:41.7]}
16... Nxc5 {[%clk 0:01:42.2]} 17. Qxc5 {[%clk 0:01:41.7]} 17... Rfb8 {[%clk
0:01:16.3]} 18. h5 {[%clk 0:01:37.4]} 18... e6 {[%clk 0:01:09.5]} 19. hxg6
{[%clk 0:01:35.6]} 19... hxg6 {[%clk 0:01:08.8]} 20. Rdg1 {[%clk 0:01:27.6]}
20... b4 {[%clk 0:00:34.4]} 21. f4 {[%clk 0:01:02.7]} 21... a3 {[%clk
0:00:24.4]} 22. b3 {[%clk 0:01:00.3]} 22... Nc3+ {[%clk 0:00:19]} 23. Ka1 {[%clk
0:00:51.8]} 23... Bf8 {[%clk 0:00:07.4]} 24. Qc4 {[%clk 0:00:51.5]} 24... Nd5
{[%clk 0:00:06.8]} 25. Bxg6 {[%clk 0:00:43.9]} 25... fxg6 {[%clk 0:00:06.2]} 26.
Rxg6+ {[%clk 0:00:43.8]} 26... Bg7 {[%clk 0:00:06.8]} 27. Rhg1 {[%clk
0:00:43.5]} 27... Qf7 {[%clk 0:00:01.5]} 28. Rxg7+ {[%clk 0:00:36.1]} 28... Qxg7
{[%clk 0:00:02.4]} 29. Rxg7+ {[%clk 0:00:36.1]} 29... Kxg7 {[%clk 0:00:03.3]}
30. Qxc6 {[%clk 0:00:35.2]} 30... Rh8 {[%clk 0:00:01.4]} 31. Kb1 {[%clk
0:00:33.9]} 31... Rh1+ {[%clk 0:00:01.4]} 32. Kc2 {[%clk 0:00:33]} 32... Ra7
{[%clk 0:00:01.7]} 33. Qxe6 {[%clk 0:00:32]} 33... Rc7+ {[%clk 0:00:02]} 34. Kd3
{[%clk 0:00:32.3]} 34... Nf6 {[%clk 0:00:02.1]} 35. Qe5 {[%clk 0:00:30.6]} 35...
Rd1 {[%clk 0:00:01.8]} 36. Ke2 {[%clk 0:00:29.9]} 1-0

[Event "Late-Titled-Tuesday-Blitz-October-10-2023"]
[Site "Chess.com"]
[Date "2023.10.10"]
[Round "10"]
[White "djano"]
[Black "WPWPWP-2015"]
[Result "1-0"]
[WhiteElo "2670"]
[BlackElo "2528"]
[TimeControl "180+1"]
[EndTime "15:50:37 PDT"]
[Termination "djano won by resignation"]

1. e4 {[%clk 0:03:00.9]} 1... c5 {[%clk 0:02:58.1]} 2. Nc3 {[%clk 0:03:00.3]}
2... e6 {[%clk 0:02:57.7]} 3. f4 {[%clk 0:02:59.9]} 3... Nc6 {[%clk 0:02:57.1]}
4. Nf3 {[%clk 0:03:00.1]} 4... a6 {[%clk 0:02:56.8]} 5. d4 {[%clk 0:02:57.2]}
5... cxd4 {[%clk 0:02:56.6]} 6. Nxd4 {[%clk 0:02:58.1]} 6... Nxd4 {[%clk
0:02:55.7]} 7. Qxd4 {[%clk 0:02:57.9]} 7... Ne7 {[%clk 0:02:56.2]} 8. Be2 {[%clk
0:02:43.9]} 8... Nc6 {[%clk 0:02:55.9]} 9. Qf2 {[%clk 0:02:44.3]} 9... b5 {[%clk
0:02:55.3]} 10. O-O {[%clk 0:02:41.8]} 10... Qc7 {[%clk 0:02:54.6]} 11. f5
{[%clk 0:02:35.5]} 11... Ne5 {[%clk 0:02:51]} 12. Kh1 {[%clk 0:02:31.8]} 12...
Bb7 {[%clk 0:02:47.1]} 13. fxe6 {[%clk 0:02:29.7]} 13... dxe6 {[%clk 0:02:46.9]}
14. Bf4 {[%clk 0:02:26.3]} 14... f6 {[%clk 0:02:30]} 15. Qg3 {[%clk 0:01:50.3]}
15... O-O-O {[%clk 0:02:18.4]} 16. a4 {[%clk 0:01:25.3]} 16... b4 {[%clk
0:02:16.7]} 17. Nd1 {[%clk 0:01:24.6]} 17... Bc5 {[%clk 0:02:03.4]} 18. c3
{[%clk 0:01:22.5]} 18... b3 {[%clk 0:01:55.1]} 19. Bc4 {[%clk 0:01:04]} 19...
Rhe8 {[%clk 0:01:31.3]} 20. Bxb3 {[%clk 0:00:59.6]} 20... Bxe4 {[%clk
0:01:29.9]} 21. Nf2 {[%clk 0:00:59.9]} 21... Bb7 {[%clk 0:01:19.1]} 22. Ng4
{[%clk 0:01:00.2]} 22... Bd6 {[%clk 0:01:14]} 23. Nxe5 {[%clk 0:00:58.9]} 23...
fxe5 {[%clk 0:01:08.3]} 24. Bg5 {[%clk 0:00:58.8]} 24... Rd7 {[%clk 0:01:08.7]}
25. Qh3 {[%clk 0:00:57.5]} 25... h6 {[%clk 0:01:04.1]} 26. Be3 {[%clk
0:00:57.7]} 26... Bd5 {[%clk 0:01:04.3]} 27. c4 {[%clk 0:00:54.7]} 27... Qb7
{[%clk 0:00:22.2]} 28. cxd5 {[%clk 0:00:55]} 28... Qxb3 {[%clk 0:00:21.8]} 29.
Rac1+ {[%clk 0:00:48.8]} 29... Kb7 {[%clk 0:00:18.3]} 30. dxe6 {[%clk
0:00:40.7]} 30... Qxe6 {[%clk 0:00:17.1]} 31. Qh5 {[%clk 0:00:29.8]} 31... e4
{[%clk 0:00:14.8]} 32. Rc3 {[%clk 0:00:28.4]} 32... Qe5 {[%clk 0:00:14.3]} 33.
Rb3+ {[%clk 0:00:25.9]} 33... Ka8 {[%clk 0:00:14.1]} 34. Rf5 {[%clk 0:00:22.9]}
34... Qe6 {[%clk 0:00:12.7]} 35. Ra5 {[%clk 0:00:19.6]} 35... Bc7 {[%clk
0:00:11.3]} 36. Qxe8+ {[%clk 0:00:16.4]} 36... Bd8 {[%clk 0:00:01.7]} 37. Qxe6
{[%clk 0:00:14.9]} 37... Rd1+ {[%clk 0:00:01.9]} 38. Bg1 {[%clk 0:00:15.6]}
38... Bb6 {[%clk 0:00:02.4]} 39. Qxb6 {[%clk 0:00:14.7]} 1-0